fUST/lending_fUST_20241008
["ID","MTS","AMOUNT","RATE_DAILY","PERIOD"]
[340047758,1728393076890,-605.21251707,0.00055342,120]
[340047759,1728393076900,-501.07560768,0.00055342,120]
[340047760,1728393076909,-500.0,0.00055342,120]
[340047761,1728393076918,-512.02175895,0.00055342,120]
[340047762,1728393076927,-500.0,0.00055342,120]
[340047763,1728393076936,-500.0,0.00055342,120]
[340047764,1728393076946,-500.0,0.00055342,120]
[340047765,1728393076955,-500.0,0.00055342,120]
[340047766,1728393076964,-500.0,0.00055342,120]
[340047767,1728393076973,-582.573879,0.00055342,120]
[340047768,1728393076982,-500.0,0.00055342,120]
[340047769,1728393076991,-500.0,0.00055342,120]
[340047770,1728393077000,-515.86510831,0.00055342,120]
[340047771,1728393077008,-501.45821273,0.00055342,120]
[340047772,1728393077020,-533.51133088,0.00055342,120]
[340047773,1728393077029,-500.0,0.00055342,120]
[340047774,1728393077038,-500.0,0.00055342,120]
[340047775,1728393077047,-177.07446461,0.00055342,120]
[340047776,1728393077057,-647.41105758,0.00055342,120]
[340047777,1728393077070,-275.03537389,0.00055342,120]
[340047778,1728393077080,-501.32659565,0.00055342,120]
[340047779,1728393077091,-500.0,0.00055342,120]
[340047780,1728393077103,-411.39668694,0.00055342,120]
[340047781,1728393077114,-321.50647417,0.00055342,120]
[340047782,1728393077124,-505.29128355,0.00055342,120]
[340047783,1728393077136,-500.0,0.00055342,120]
[340047784,1728393077146,-501.74049879,0.00055342,120]
[340047785,1728393077155,-500.53710378,0.00055342,2]
[340047786,1728393077165,-316.84340713,0.00055342,120]
[340047787,1728393077174,-500.0,0.00055342,120]
[340047788,1728393077184,-386.81828831,0.00055342,120]
[340047789,1728393077194,-500.0,0.00055342,120]
[340047790,1728393077204,-502.10072581,0.00055342,120]
[340047791,1728393077214,-503.24968274,0.00055342,120]
[340047792,1728393077224,-464.36717663,0.00055342,120]
[340047793,1728393077233,-390.79233399,0.00055342,120]
[340047794,1728393077242,-500.0,0.00055342,120]
[340047795,1728393077251,-500.0,0.00055342,120]
[340047796,1728393077260,-515.64068067,0.00055342,120]
[340047797,1728393077270,-500.0,0.00055342,120]
[340047798,1728393077279,-500.0,0.00055342,120]
[340047799,1728393077288,-251.40638146,0.00055342,120]
[340047800,1728393077298,-492.48642471,0.00055342,120]
[340047801,1728393077307,-500.0,0.00055342,120]
[340047802,1728393077316,-500.91267645,0.00055342,120]
[340047803,1728393077325,-502.11537911,0.00055342,120]
[340047804,1728393077335,-271.50241543,0.00055342,120]
[340047805,1728393077344,-501.31771919,0.00055342,120]
[340047806,1728393077353,-500.0,0.00055342,120]
[340047807,1728393077362,-500.0,0.00055342,120]
[340047808,1728393077372,-500.0,0.00055342,120]
[340047809,1728393077381,-500.0,0.00055342,120]
[340047810,1728393077390,-502.10318516,0.00055342,120]
[340047811,1728393077399,-500.89019402,0.00055342,120]
[340047812,1728393077408,-502.64432937,0.00055342,120]
[340047813,1728393077417,-605.08291619,0.00055342,120]
[340047814,1728393077427,-500.0,0.00055342,120]
[340047815,1728393077436,-501.62063355,0.00055342,120]
[340047816,1728393077445,-500.0,0.00055342,120]
[340047817,1728393077455,-428.996448,0.00055342,120]
[340047818,1728393077464,-503.22229305,0.00055342,120]
[340047819,1728393077473,-502.14007762,0.00055342,120]
[340047820,1728393077482,-502.93362131,0.00055342,120]
[340047821,1728393077491,-500.0,0.00055342,120]
[340047822,1728393077501,-501.82536825,0.00055342,120]
[340047823,1728393077510,-502.01141734,0.00055342,120]
[340047824,1728393077523,-500.0,0.00055342,120]
[340047825,1728393077533,-500.0,0.00055342,120]
[340047826,1728393077544,-506.29386753,0.00055342,120]
[340047827,1728393077553,-501.33787079,0.00055342,120]
[340047828,1728393077563,-500.0,0.00055342,120]
[340047829,1728393077573,-608.34036195,0.00055342,120]
[340047830,1728393077583,-500.0,0.00055342,120]
[340047831,1728393077593,-502.31775917,0.00055342,120]
[340047832,1728393077603,-511.78374391,0.00055342,120]
[340047833,1728393077613,-500.0,0.00055342,120]
[340047834,1728393077623,-501.24930961,0.00055342,30]
[340047835,1728393077633,-500.0,0.00055342,120]
[340047836,1728393077643,-501.32494237,0.00055342,120]
[340047837,1728393077653,-505.06788891,0.00055342,120]
[340047838,1728393077662,-500.0,0.00055342,120]
[340047839,1728393077672,-500.0,0.00055342,120]
[340047840,1728393077683,-500.0,0.00055342,120]
[340047841,1728393077692,-505.81610392,0.00055342,120]
[340047842,1728393077780,-500.0,0.00055342,120]
[340047843,1728393077790,-522.92604045,0.00055342,120]
[340047844,1728393077800,-160.85520713,0.00055342,120]
[340047845,1728393077809,-500.0,0.00055342,120]
[340047846,1728393077819,-500.0,0.00055342,120]
[340047847,1728393077828,-500.0,0.00055342,120]
[340047848,1728393077837,-500.0,0.00055342,120]
[340047849,1728393077846,-501.66006784,0.00055342,120]
[340047850,1728393077855,-500.0,0.00055342,120]
[340047851,1728393077866,-625.65425528,0.00055342,120]
[340047852,1728393077877,-500.0,0.00055342,120]
[340047853,1728393077888,-500.0,0.00055342,120]
[340047854,1728393077899,-500.0,0.00055342,120]
[340047855,1728393077911,-505.0096349,0.00055342,120]
[340047856,1728393077924,-500.0,0.00055342,120]
[340047857,1728393077934,-500.0,0.00055342,120]
[340047858,1728393077943,-289.75523136,0.00055342,120]
[340047859,1728393077954,-374.00770622,0.00055342,120]
[340047860,1728393077963,-500.0,0.00055342,120]
[340047861,1728393077974,-550.89755036,0.00055342,120]
[340047862,1728393077985,-436.70482395,0.00055342,120]
[340047863,1728393077995,-500.0,0.00055342,120]
[340047864,1728393078005,-500.0,0.00055342,120]
[340047865,1728393078014,-500.0,0.00055342,120]
[340047866,1728393078025,-500.0,0.00055342,120]
[340047867,1728393078035,-500.0,0.00055342,120]
[340047868,1728393078044,-500.0,0.00055342,120]
[340047869,1728393078053,-500.0,0.00055342,120]
[340047870,1728393078066,-500.0,0.00055342,120]
[340047871,1728393078075,-500.0,0.00055342,120]
[340047872,1728393078085,-500.0,0.00055342,120]
[340047873,1728393078095,-508.49375439,0.00055342,120]
[340047874,1728393078104,-508.09989567,0.00055342,120]
[340047875,1728393078113,-500.0,0.00055342,120]
[340047876,1728393078122,-503.18931833,0.00055342,120]
[340047877,1728393078133,-500.0,0.00055342,120]
[340047878,1728393078144,-503.08504741,0.00055342,120]
[340047879,1728393078154,-500.0,0.00055342,120]
[340047880,1728393078163,-502.48577696,0.00055342,120]
[340047881,1728393078173,-515.56996049,0.00055342,120]
[340047882,1728393078182,-8577.72,0.00055342,18]
[340047883,1728393078191,-1057.53,0.00055342,120]
[340047884,1728393078201,-500.0,0.00055342,120]
[340047885,1728393078211,-500.0,0.00055342,120]
[340047886,1728393078220,-500.0,0.00055342,120]
[340047887,1728393078230,-502.53703466,0.00055342,120]
[340047888,1728393078240,-501.12281014,0.00055342,120]
[340047889,1728393078249,-525.19,0.00055342,21]
[340047890,1728393078259,-523.03005644,0.00055342,120]
[340047891,1728393078270,-508.5778552,0.00055342,120]
[340047892,1728393078279,-512.85976398,0.00055342,120]
[340047893,1728393078289,-4670.36,0.00055342,120]
[340047894,1728393078299,-500.94246463,0.00055342,10]
[340047895,1728393078309,-500.56726142,0.00055342,120]
[340047896,1728393078318,-500.0,0.00055342,120]
[340047897,1728393078328,-500.0,0.00055342,120]
[340047898,1728393078337,-500.0,0.00055342,120]
[340047899,1728393078346,-501.64863327,0.00055342,120]
[340047900,1728393078356,-501.10206567,0.00055342,120]
[340047901,1728393078365,-500.0,0.00055342,120]
[340047902,1728393078375,-500.0,0.00055342,120]
[340047903,1728393078384,-500.0,0.00055342,90]
[340047904,1728393078393,-500.0,0.00055342,120]
[340047905,1728393078403,-557.05299659,0.00055342,120]
[340047906,1728393078412,-500.0,0.00055342,120]
[340047907,1728393078421,-500.0031663,0.00055342,120]
[340047908,1728393078430,-500.0,0.00055342,120]
[340047909,1728393078439,-500.0,0.00055342,120]
[340047910,1728393078449,-448.46131732,0.00055342,120]
[340047911,1728393078460,-500.0,0.00055342,120]
[340047912,1728393078469,-500.0,0.00055342,120]
[340047913,1728393078479,-503.73522831,0.00055342,120]
[340047914,1728393078489,-500.0,0.00055342,120]
[340047915,1728393078498,-507.84862679,0.00055342,120]
[340047916,1728393078508,-500.71239954,0.00055342,2]
[340047917,1728393078519,-500.0,0.00055342,7]
[340047918,1728393078530,-500.0,0.00055342,120]
[340047919,1728393078540,-154.97239497,0.00055342,120]
[340047920,1728393078550,-500.0,0.00055342,120]
[340047921,1728393078561,-500.0,0.00055342,120]
[340047922,1728393078570,-507.38273947,0.00055342,120]
[340047923,1728393078580,-500.0,0.00055342,120]
[340047924,1728393078590,-265.9839274,0.00055342,120]
[340047925,1728393078599,-500.0,0.00055342,120]
[340047926,1728393078608,-496.90277366,0.00055342,120]
[340047927,1728393078618,-501.84100322,0.00055342,120]
[340047928,1728393078627,-2268.44,0.00055342,120]
[340047929,1728393078636,-500.0,0.00055342,120]
[340047930,1728393078645,-507.06358817,0.00055342,120]
[340047931,1728393078655,-501.60337936,0.00055342,120]
[340047932,1728393078664,-1000.11,0.00055342,120]
[340047933,1728393078673,-500.0,0.00055342,60]
[340047934,1728393078682,-500.86440412,0.00055342,120]
[340047935,1728393078691,-501.13046964,0.00055342,120]
[340047936,1728393078701,-500.0,0.00055342,120]
[340047937,1728393078710,-502.62027893,0.00055342,120]
[340047938,1728393078719,-500.0,0.00055342,120]
[340047939,1728393078728,-500.0,0.00055342,120]
[340047940,1728393078738,-500.0,0.00055342,120]
[340047941,1728393078747,-302.00202956,0.00055342,120]
[340047942,1728393078756,-319.02517087,0.00055342,120]
[340047943,1728393078765,-500.0,0.00055342,120]
[340047944,1728393078777,-529.34962072,0.00055342,120]
[340047945,1728393078786,-500.0,0.00055342,120]
[340047946,1728393078795,-500.0,0.00055342,120]
[340047947,1728393078804,-462.82901238,0.00055342,120]
[340047948,1728393078814,-502.39282084,0.00055342,120]
[340047949,1728393078823,-246.89842662,0.00055342,120]
[340047950,1728393078832,-500.0,0.00055342,120]
[340047951,1728393078842,-511.76930166,0.00055342,120]
[340047952,1728393078851,-503.98059799,0.00055342,120]
[340047953,1728393078860,-252.09402541,0.00055342,120]
[340047954,1728393078871,-500.0,0.00055342,120]
[340047955,1728393078881,-4166.62,0.00055342,120]
[340047956,1728393078890,-500.0,0.00055342,120]
[340047957,1728393078900,-500.0,0.00055342,120]
[340047958,1728393078909,-319.31728968,0.00055342,120]
[340047959,1728393078918,-500.0,0.00055342,120]
[340047960,1728393078928,-500.0,0.00055342,120]
[340047961,1728393078937,-500.0,0.00055342,120]
[340047962,1728393078946,-289.32,0.00055342,120]
[340047963,1728393078955,-345.68,0.00055342,120]
[340047964,1728393078964,-176.63896127,0.00055342,120]
[340047965,1728393078974,-201.4,0.00055342,120]
[340047966,1728393078983,-421.58998498,0.00055342,7]
[340047967,1728393078992,-244.0,0.00055342,120]
[340047968,1728393079001,-274.7,0.00055342,120]
[340047969,1728393079011,-320.41232299,0.00055342,120]
[340047970,1728393079023,-209.98673011,0.00055342,120]
[340047971,1728393079032,-320.47,0.00055342,120]
[340047972,1728393079043,-303.44,0.00055342,120]
[340047973,1728393079054,-170.97,0.00055342,120]
[340047974,1728393079069,-500.0,0.00055342,120]
[340047975,1728393079079,-215.88,0.00055342,120]
[340047976,1728393079089,-257.41,0.00055342,120]
[340047977,1728393079098,-355.19,0.00055342,120]
[340047978,1728393079108,-500.0,0.00055342,120]
[340047979,1728393079118,-207.23,0.00055342,120]
[340047980,1728393079127,-271.25,0.00055342,120]
[340047981,1728393079136,-463.48,0.00055342,120]
[340047982,1728393079146,-500.0,0.00055342,18]
[340047983,1728393079156,-173.59828876,0.00055342,120]
[340047984,1728393079166,-161.5,0.00055342,120]
[340047985,1728393079176,-185.82,0.00055342,120]
[340047986,1728393079187,-252.69,0.00055342,120]
[340047987,1728393079196,-517.23057587,0.00055342,120]
[340047988,1728393079206,-294.82,0.00055342,120]
[340047989,1728393079216,-500.0,0.00055342,120]
[340047990,1728393079225,-500.0,0.00055342,120]
[340047991,1728393079234,-500.0,0.00055342,120]
[340047992,1728393079245,-529.79,0.00055342,120]
[340047993,1728393079255,-500.0,0.00055342,120]
[340047994,1728393079265,-500.0,0.00055342,120]
[340047995,1728393079276,-500.0,0.00055342,120]
[340047996,1728393079285,-500.0,0.00055342,120]
[340047997,1728393079295,-500.0,0.00055342,120]
[340047998,1728393079305,-367.47,0.00055342,120]
[340047999,1728393079315,-500.0,0.00055342,120]
[340048000,1728393079324,-362.0,0.00055342,120]
[340048001,1728393079333,-500.0,0.00055342,120]
[340048002,1728393079343,-172.51,0.00055342,120]
[340048003,1728393079352,-522.39105398,0.00055342,120]
[340048004,1728393079362,-500.0,0.00055342,120]
[340048005,1728393079371,-312.73,0.00055342,120]
[340048006,1728393079381,-295.99,0.00055342,120]
[340048007,1728393079390,-170.34,0.00055342,120]
[340048008,1728393079400,-500.0,0.00055342,120]
[340048009,1728393079409,-264.92,0.00055342,120]
[340048010,1728393079419,-500.0,0.00055342,120]
[340048011,1728393079428,-186.16,0.00055342,120]
[340048012,1728393079438,-500.0,0.00055342,120]
[340048013,1728393079447,-500.0,0.00055342,120]
[340048014,1728393079456,-286.29,0.00055342,120]
[340048015,1728393079540,-269.97,0.00055342,120]
[340048016,1728393079557,-425.75,0.00055342,7]
[340048017,1728393079567,-500.0,0.00055342,120]
[340048018,1728393079576,-584.5,0.00055342,60]
[340048019,1728393079586,-500.0,0.00055342,120]
[340048020,1728393079596,-500.0,0.00055342,120]
[340048021,1728393079606,-500.0,0.00055342,120]
[340048022,1728393079616,-500.0,0.00055342,120]
[340048023,1728393079625,-500.0,0.00055342,120]
[340048024,1728393079635,-500.43306642,0.00055342,120]
[340048025,1728393079645,-500.0,0.00055342,120]
[340048026,1728393079655,-501.65,0.00055342,120]
[340048027,1728393079664,-500.0,0.00055342,120]
[340048028,1728393079674,-240.94698732,0.00055342,120]
[340048029,1728393079685,-500.0,0.00055342,120]
[340048030,1728393079694,-500.0,0.00055342,120]
[340048031,1728393079704,-500.63617493,0.00055342,120]
[340048032,1728393079714,-500.0,0.00055342,120]
[340048033,1728393079724,-500.0,0.00055342,30]
[340048034,1728393079734,-500.0,0.00055342,120]
[340048035,1728393079744,-500.0,0.00055342,120]
[340048036,1728393079754,-513.26,0.00055342,120]
[340048037,1728393079764,-500.0,0.00055342,120]
[340048038,1728393079775,-500.96205169,0.00055342,120]
[340048039,1728393079790,-500.0,0.00055342,90]
[340048040,1728393079807,-512.84,0.00055342,120]
[340048041,1728393079817,-500.633528,0.00055342,120]
[340048042,1728393079826,-500.0,0.00055342,120]
[340048043,1728393079836,-500.0,0.00055342,7]
[340048044,1728393079846,-500.0,0.00055342,120]
[340048045,1728393079855,-506.9163469,0.00055342,120]
[340048046,1728393079865,-500.93086994,0.00055342,120]
[340048047,1728393079875,-500.0,0.00055342,120]
[340048048,1728393079884,-500.76614246,0.00055342,120]
[340048049,1728393079894,-319.56,0.00055342,120]
[340048050,1728393079903,-500.0,0.00055342,120]
[340048051,1728393079912,-500.0,0.00055342,120]
[340048052,1728393079922,-500.0,0.00055342,120]
[340048053,1728393079932,-500.0,0.00055342,120]
[340048054,1728393079941,-500.0,0.00055342,120]
[340048055,1728393079951,-501.17747167,0.00055342,120]
[340048056,1728393079960,-500.90977072,0.00055342,120]
[340048057,1728393079969,-500.0,0.00055342,120]
[340048058,1728393079978,-500.0,0.00055342,120]
[340048059,1728393079987,-500.46409324,0.00055342,120]
[340048060,1728393079996,-500.0,0.00055342,120]
[340048061,1728393080005,-500.0,0.00055342,120]
[340048062,1728393080015,-502.28398826,0.00055342,120]
[340048063,1728393080025,-500.0,0.00055342,120]
[340048064,1728393080034,-157.25,0.00055342,120]
[340048065,1728393080045,-500.0,0.00055342,120]
[340048066,1728393080055,-501.23609581,0.00055342,120]
[340048067,1728393080071,-500.0,0.00055342,120]
[340048068,1728393080082,-500.0,0.00055342,120]
[340048069,1728393080094,-500.0,0.00055342,120]
[340048070,1728393080106,-172.18,0.00055342,120]
[340048071,1728393080116,-501.70948119,0.00055342,120]
[340048072,1728393080126,-500.0,0.00055342,120]
[340048073,1728393080138,-500.0,0.00055342,120]
[340048074,1728393080149,-261.7,0.00055342,120]
[340048075,1728393080159,-500.0,0.00055342,120]
[340048076,1728393080169,-500.0,0.00055342,120]
[340048077,1728393080178,-500.0,0.00055342,120]
[340048078,1728393080189,-500.0,0.00055342,120]
[340048079,1728393080199,-500.0,0.00055342,120]
[340048080,1728393080208,-500.0,0.00055342,120]
[340048081,1728393080217,-500.0,0.00055342,120]
[340048082,1728393080228,-500.0,0.00055342,120]
[340048083,1728393080237,-264.56,0.00055342,120]
[340048084,1728393080247,-500.0,0.00055342,120]
[340048085,1728393080258,-331.32,0.00055342,120]
[340048086,1728393080269,-326.40688968,0.00055342,120]
[340048087,1728393080279,-500.0,0.00055342,120]
[340048088,1728393080289,-423.33,0.00055342,120]
[340048089,1728393080300,-177.77,0.00055342,120]
[340048090,1728393080312,-216.42,0.00055342,120]
[340048091,1728393080321,-278.87,0.00055342,120]
[340048092,1728393080332,-326.09,0.00055342,120]
[340048093,1728393080343,-213.0,0.00055342,120]
[340048094,1728393080352,-197.6,0.00055342,120]
[340048095,1728393080364,-262.82,0.00055342,120]
[340048096,1728393080381,-317.52,0.00055342,120]
[340048097,1728393080397,-500.0,0.00055342,120]
[340048098,1728393080413,-500.0,0.00055342,120]
[340048099,1728393080429,-416.72,0.00055342,120]
[340048100,1728393080447,-559.4035127,0.00055342,120]
[340048101,1728393080467,-151.09,0.00055342,120]
[340048102,1728393080485,-500.0,0.00055342,120]
[340048103,1728393080502,-595.71,0.00055342,120]
[340048104,1728393080519,-281.76,0.00055342,120]
[340048105,1728393080539,-500.0,0.00055342,120]
[340048106,1728393080556,-355.81134449,0.00055342,120]
[340048107,1728393080572,-500.0,0.00055342,120]
[340048108,1728393080590,-383.23,0.00055342,120]
[340048109,1728393080608,-177.76,0.00055342,120]
[340048110,1728393080620,-500.0,0.00055342,120]
[340048111,1728393080635,-155.32,0.00055342,120]
[340048112,1728393080652,-399.69,0.00055342,120]
[340048113,1728393080667,-253.52,0.00055342,120]
[340048114,1728393080683,-166.99,0.00055342,120]
[340048115,1728393080696,-478.91,0.00055342,120]
[340048116,1728393080711,-639.89,0.00055342,120]
[340048117,1728393080725,-500.0,0.00055342,120]
[340048118,1728393080739,-255.37,0.00055342,120]
[340048119,1728393080753,-500.0,0.00055342,120]
[340048120,1728393080769,-500.0,0.00055342,120]
[340048121,1728393080782,-328.44,0.00055342,120]
[340048122,1728393080796,-1050.9,0.00055342,18]
[340048123,1728393080810,-500.0,0.00055342,30]
[340048124,1728393080824,-500.0,0.00055342,21]
[340048125,1728393080837,-609.5,0.00055342,120]
[340048126,1728393080852,-569.38,0.00055342,120]
[340048127,1728393080865,-221.15,0.00055342,120]
[340048128,1728393080879,-285.41,0.00055342,120]
[340048129,1728393080893,-232.7,0.00055342,120]
[340048130,1728393080906,-239.11,0.00055342,120]
[340048131,1728393080921,-500.0,0.00055342,120]
[340048132,1728393080934,-384.86,0.00055342,120]
[340048133,1728393080947,-215.31,0.00055342,120]
[340048134,1728393080962,-256.43,0.00055342,120]
[340048135,1728393080974,-353.6,0.00055342,120]
[340048136,1728393080988,-186.57,0.00055342,120]
[340048137,1728393081001,-229.96,0.00055342,120]
[340048138,1728393081015,-296.68,0.00055342,120]
[340048139,1728393081029,-231.42,0.00055342,120]
[340048140,1728393081042,-233.05,0.00055342,120]
[340048141,1728393081057,-157.57,0.00055342,120]
[340048142,1728393081072,-350.06,0.00055342,120]
[340048143,1728393081086,-165.66,0.00055342,120]
[340048144,1728393081101,-387.17,0.00055342,7]
[340048145,1728393081115,-168.52,0.00055342,120]
[340048146,1728393081129,-500.0,0.00055342,90]
[340048147,1728393081143,-6665.61,0.00055342,20]
[340048148,1728393081157,-500.0,0.00055342,7]
[340048149,1728393081170,-263.49,0.00055342,120]
[340048150,1728393081183,-191.1,0.00055342,120]
[340048151,1728393081197,-291.67,0.00055342,120]
[340048152,1728393081211,-246.41,0.00055342,120]
[340048153,1728393081224,-202.17,0.00055342,120]
[340048154,1728393081237,-1007.11,0.00055342,18]
[340048155,1728393081251,-231.04,0.00055342,120]
[340048156,1728393081265,-500.0,0.00055342,21]
[340048157,1728393081278,-500.0,0.00055342,120]
[340048158,1728393081291,-524.82,0.00055342,120]
[340048159,1728393081305,-224.91,0.00055342,120]
[340048160,1728393081317,-347.99,0.00055342,120]
[340048161,1728393081329,-550.06,0.00055342,120]
[340048162,1728393081342,-500.0,0.00055342,120]
[340048163,1728393081355,-378.52,0.00055342,120]
[340048164,1728393081368,-318.04,0.00055342,120]
[340048165,1728393081381,-500.0,0.00055342,120]
[340048166,1728393081394,-316.22,0.00055342,120]
[340048167,1728393081408,-180.61,0.00055342,120]
[340048168,1728393081421,-577.27,0.00055342,120]
[340048169,1728393081434,-173.07,0.00055342,120]
[340048170,1728393081447,-557.850729,0.00055342,120]
[340048171,1728393081459,-157.97,0.00055342,120]
[340048172,1728393081472,-592.4,0.00055342,120]
[340048173,1728393081485,-500.0,0.00055342,120]
[340048174,1728393081497,-222.13,0.00055342,120]
[340048175,1728393081644,-500.0,0.00055342,120]
[340048176,1728393081663,-237.89,0.00055342,120]
[340048177,1728393081674,-500.0,0.00055342,120]
[340048178,1728393081685,-223.9,0.00055342,120]
[340048179,1728393081694,-641.35,0.00055342,120]
[340048180,1728393081705,-649.32,0.00055342,120]
[340048181,1728393081715,-293.92,0.00055342,120]
[340048182,1728393081725,-500.0,0.00055342,30]
[340048183,1728393081736,-563.27,0.00055342,120]
[340048184,1728393081746,-500.0,0.00055342,120]
[340048185,1728393081757,-208.32,0.00055342,120]
[340048186,1728393081768,-202.5,0.00055342,120]
[340048187,1728393081779,-200.94,0.00055342,120]
[340048188,1728393081791,-314.64,0.00055342,120]
[340048189,1728393081802,-199.55,0.00055342,120]
[340048190,1728393081811,-350.21,0.00055342,7]
[340048191,1728393081822,-500.0,0.00055342,90]
[340048192,1728393081833,-500.0,0.00055342,7]
[340048193,1728393081843,-183.29,0.00055342,120]
[340048194,1728393081853,-283.45,0.00055342,120]
[340048195,1728393081863,-249.19,0.00055342,120]
[340048196,1728393081874,-500.0,0.00055342,120]
[340048197,1728393081885,-346.43,0.00055342,120]
[340048198,1728393081895,-362.21,0.00055342,120]
[340048199,1728393081905,-173.42,0.00055342,120]
[340048200,1728393081915,-557.03,0.00055342,120]
[340048201,1728393081925,-506.3,0.00055342,120]
[340048202,1728393081935,-154.82,0.00055342,120]
[340048203,1728393081945,-500.0,0.00055342,120]
[340048204,1728393081955,-500.0,0.00055342,120]
[340048205,1728393081964,-650.41,0.00055342,2]
[340048206,1728393081974,-500.0,0.00055342,120]
[340048207,1728393081984,-162.31,0.00055342,120]
[340048208,1728393081994,-500.0,0.00055342,120]
[340048209,1728393082004,-500.0,0.00055342,120]
[340048210,1728393082014,-500.0,0.00055342,120]
[340048211,1728393082025,-518.08463876,0.00055342,120]
[340048212,1728393082034,-3752.25,0.00055342,120]
[340048213,1728393082045,-4166.66,0.00055342,120]
[340048214,1728393082055,-500.0,0.00055342,120]
[340048215,1728393082070,-500.0,0.00055342,120]
[340048216,1728393082080,-872.91,0.00055342,120]
[340048217,1728393082089,-500.0,0.00055342,120]
[340048218,1728393082099,-500.0,0.00055342,120]
[340048219,1728393082108,-500.0,0.00055342,120]
[340048220,1728393082118,-500.0,0.00055342,120]
[340048221,1728393082128,-500.0,0.00055342,120]
[340048222,1728393082140,-1000.0,0.00055342,120]
[340048223,1728393082150,-500.0,0.00055342,120]
[340048224,1728393082158,-506.30394016,0.00055342,120]
[340048225,1728393082168,-500.0,0.00055342,120]
[340048226,1728393082177,-600.0,0.00055342,120]
[340048227,1728393082188,-500.0,0.00055342,120]
[340048228,1728393082197,-1000.0,0.00055342,120]
[340048229,1728393082207,-1000.0,0.00055342,120]
[340048230,1728393082217,-500.0,0.00055342,2]
[340048231,1728393082226,-773.15,0.00055342,120]
[340048232,1728393082236,-1000.0,0.00055342,120]
[340048233,1728393082245,-401244.3984,0.0005544,30]
[340048234,1728393082255,-176.785716,0.00055464,30]
[340048235,1728393082265,-161.338612,0.00055464,30]
[340048236,1728393082280,-388.240778,0.00055464,30]
[340048237,1728393082290,-500.411068,0.00055464,30]
[340048238,1728393082299,-170.602256,0.00055464,30]
[340048239,1728393082310,-729.53312,0.00055464,30]
[340048240,1728393082320,-168.990968,0.00055464,30]
[340048241,1728393082329,-183.694886,0.00055464,30]
[340048242,1728393082339,-183.61657,0.00055464,30]
[340048243,1728393082349,-185.714984,0.00055464,30]
[340048244,1728393082359,-3767.22507674,0.00055679,28]
[340048245,1728393082369,-347.15,0.0005575,120]
[340048246,1728393082379,-347.15,0.0005575,120]
[340048247,1728393082389,-347.15,0.0005575,120]
[340048248,1728393082399,-347.151,0.0005575,120]
[340048249,1728393082410,-347.15,0.0005575,120]
[340048250,1728393082421,-500.0,0.0005589,120]
[340048251,1728393082431,-500.0,0.0005589,120]
[340048252,1728393082441,-502.25213732,0.0005589,120]
[340048253,1728393082452,-500.0,0.0005589,120]
[340048254,1728393082462,-500.0,0.0005589,120]
[340048255,1728393082473,-500.0,0.0005589,120]
[340048256,1728393082483,-434.70988607,0.0005589,120]
[340048257,1728393082492,-501.14919262,0.0005589,120]